bitfinex/quotes_SOLUSD_20260118
["timestamp","ask_amount","ask_price","bid_price","bid_amount"]
[1768756710133,8.46212353,141.98,141.95,3.42276686]
[1768756712039,22.56406389,142.0,141.96,2.13552276]
[1768756712345,8.4611254,142.0,141.97,1.2872441]
[1768756712723,8.46065218,142.01,141.98,1.2872441]
[1768756713033,1.41868945,142.01,141.98,2.13552276]
[1768756713415,8.46014213,142.02,141.98,2.13552276]
[1768756714514,10.59566489,142.02,141.98,2.13552276]
[1768756714824,10.59566489,142.02,141.98,3.42276686]
[1768756715736,10.59566489,142.02,141.98,1.2872441]
[1768756716936,9.17697544,142.02,141.98,1.2872441]
[1768756717137,8.34163721,142.01,141.98,1.2872441]
[1768756722443,7.04191959,142.01,141.98,1.2872441]
[1768756723039,8.34163721,142.01,141.98,1.2872441]
[1768756725443,7.04191959,142.01,141.98,1.2872441]
[1768756729948,8.34163721,142.01,141.98,1.2872441]
[1768756736552,7.04191959,142.01,141.98,1.2872441]
[1768756738353,8.31713967,142.01,141.98,1.2872441]
[1768756738660,10.45266243,142.01,141.98,1.2872441]
[1768756738857,10.45119221,142.01,141.98,1.2872441]
[1768756741558,8.31713967,142.01,141.98,1.2872441]
[1768756741758,10.45119221,142.01,141.98,1.2872441]
[1768756745161,8.31713967,142.01,141.98,1.2872441]
[1768756745563,10.45119221,142.01,141.98,1.2872441]
[1768756750562,8.31713967,142.01,141.98,1.2872441]
[1768756752867,7.04191959,142.01,141.98,1.2872441]
[1768756753970,8.31713967,142.01,141.98,1.2872441]
[1768756755277,1.27522008,142.0,141.97,1.36838045]
[1768756755464,1.27522008,142.0,141.96,68.88838045]
[1768756756667,3.40927262,142.0,141.96,68.88838045]
[1768756756857,1.27522008,141.99,141.96,68.88838045]
[1768756757278,1.27522008,141.99,141.96,16.78838045]
[1768756759077,10.45176896,142.0,141.97,1.36838045]
[1768756777088,9.17654888,142.0,141.96,22.46423283]
[1768756777280,1.35905713,141.99,141.96,23.73034145]
[1768756778387,9.17654888,142.0,141.96,22.46423283]
[1768756778692,10.53560601,142.0,141.97,1.26610862]
[1768756780092,1.35905713,142.0,141.97,8.30982863]
[1768756780290,7.0419464,142.01,141.98,1.26610862]
[1768756780597,9.17599894,142.01,141.98,1.26610862]
[1768756780774,10.53505607,142.01,141.98,1.26610862]
[1768756782690,1.35905713,142.0,141.98,1.26610862]
[1768756787296,10.53505607,142.01,141.98,1.26610862]
[1768756789029,8.40100353,142.01,141.98,1.26610862]
[1768756789197,10.53505607,142.01,141.98,1.26610862]
[1768756789618,8.40100353,142.01,141.98,1.26610862]
[1768756792701,1.35905713,142.01,141.98,8.30929454]
[1768756795430,1.35905713,142.01,141.98,1.26610862]
[1768756797815,8.40090419,142.01,141.98,1.26610862]
[1768756801940,24.59531467,142.02,141.98,1.26610862]
[1768756802236,10.53932021,142.03,142.0,1.33545401]
[1768756802423,7.04096587,142.03,142.0,1.33545401]
[1768756803237,8.40547106,142.03,142.0,1.33545401]
[1768756803439,10.53932021,142.03,142.0,1.33545401]
[1768756808338,8.40547106,142.03,142.0,1.33545401]
[1768756811244,7.04096587,142.03,142.0,1.33545401]
[1768756816850,8.40547106,142.03,142.0,1.33545401]
[1768756829870,8.40547106,142.03,142.0,3.46930316]
[1768756847191,8.40547106,142.03,142.0,1.33545401]
[1768756848096,1.29985915,142.05,142.02,1.28145725]
[1768756848498,0.2,142.06,142.04,3.4153064]
[1768756849586,7.23930421,142.06,142.04,3.4153064]
[1768756850795,0.2,142.06,142.04,3.4153064]
[1768756850990,0.2,142.06,142.05,1.28145725]
[1768756851292,0.2,142.07,142.04,7.04021626]
[1768756851494,0.2,142.07,142.05,4.03e-06]
[1768756852168,0.2,142.08,142.06,2.13384915]
[1768756853193,0.2,142.08,142.07,1.31119747]
[1768756854398,0.2,142.08,142.07,3.44504662]
[1768756854576,0.2,142.08,142.07,1.31119747]
[1768756855405,0.2,142.08,142.07,8.34998116]
[1768756855585,0.1,142.09,142.08,1.31119747]
[1768756855785,0.1,142.1,142.08,1.28119747]
[1768756855986,1.2460707,142.09,142.07,15.42]
[1768756856306,3.47991985,142.1,142.07,15.42]
[1768756857809,1.3460707,142.1,142.07,16.73119747]
[1768756859315,1.2460707,142.07,142.03,8.44800956]
[1768756859612,1.2460707,142.03,142.0,8.35299169]
[1768756859904,3.37991985,142.03,142.01,8.35289069]
[1768756860231,3.37991985,142.03,142.01,1.31119747]
[1768756861119,3.37968204,142.03,142.01,1.31119747]
[1768756861600,1.2460707,142.04,142.01,8.35292385]
[1768756861796,3.37968204,142.04,142.01,1.31119747]
[1768756862409,2.13361134,142.02,142.0,1.31119747]
[1768756862593,1.2460707,142.03,142.0,1.31119747]
[1768756862912,3.37968204,142.03,142.0,1.31119747]
[1768756866202,1.2460707,142.03,142.0,1.31119747]
[1768756866403,3.37968204,142.03,142.0,1.31119747]
[1768756869718,3.37968204,142.03,142.0,8.35339244]
[1768756874828,1.2460707,142.03,142.0,8.35339244]
[1768756875125,3.37968204,142.03,142.0,8.35339244]
[1768756878536,1.2460707,142.03,142.0,8.35339244]
[1768756884745,3.37968204,142.03,142.0,8.35339244]
[1768756888932,1.2460707,142.03,142.01,1.32453121]
[1768756889136,10.50739517,142.04,142.01,1.32453121]
[1768756895338,8.37378383,142.04,142.01,1.32453121]
[1768756895649,10.50739517,142.04,142.01,1.32453121]
[1768756897663,8.37378383,142.04,142.01,1.32453121]
[1768756905273,10.50739517,142.04,142.01,1.32453121]
[1768756913188,2.13361134,142.03,142.01,1.32453121]
[1768756915290,8.37378383,142.04,142.01,1.32453121]
[1768756915587,2.13361134,142.03,142.01,1.32453121]
[1768756919093,8.37378383,142.04,142.01,1.32453121]
[1768756919289,2.13361134,142.03,142.01,1.32453121]
[1768756919593,8.37378383,142.04,142.01,1.32453121]
[1768756919777,2.13361134,142.03,142.01,1.32453121]
[1768756920487,8.37378383,142.04,142.01,1.32453121]
[1768756920690,2.13361134,142.05,142.02,1.33741911]
[1768756921000,3.48512259,142.05,142.02,1.33741911]
[1768756921495,3.48512259,142.05,142.02,8.37838629]
[1768756921696,3.48512259,142.05,142.02,23.79838629]
[1768756922369,1.35230447,142.05,142.02,23.79838629]
[1768756922793,3.48512259,142.07,142.03,1.33741911]
[1768756922972,1.35230447,142.08,142.04,1.33741911]
[1768756924277,1.35230447,142.08,142.05,8.37719383]
[1768756924573,1.35230447,142.08,142.05,23.79719383]
[1768756924896,3.48512259,142.08,142.05,23.79719383]
[1768756929496,3.48512259,142.06,142.02,68.85741911]
[1768756929676,2.13281812,142.05,142.02,16.75741911]
[1768756929873,2.13281812,142.05,142.03,1.33741911]
[1768756930076,2.13281812,142.05,142.03,8.37816762]
[1768756930301,3.48512259,142.06,142.03,8.37816762]
[1768756936599,1.35230447,142.06,142.03,8.37816762]
[1768756937800,3.48512259,142.06,142.03,8.37816762]
[1768756942502,1.35230447,142.06,142.03,8.37816762]
[1768756942703,3.48512259,142.06,142.03,8.37816762]
[1768756946307,1.35230447,142.06,142.03,8.37816762]
[1768756949313,3.48512259,142.06,142.03,8.37816762]
[1768756953112,2.13281812,142.07,142.04,1.37481777]
[1768756953913,3.43745954,142.07,142.04,1.37481777]
[1768756955619,2.13281812,142.08,142.05,1.37481777]
[1768756956008,10.47544616,142.09,142.05,1.37481777]
[1768756956810,10.47544616,142.09,142.05,8.41445281]
[1768756958416,3.50533627,142.08,142.05,8.41445281]
[1768756958625,1.37251815,142.07,142.05,8.36537531]
[1768756959422,1.37251815,142.07,142.05,1.32574027]
[1768756959609,1.37251815,142.07,142.04,8.36580558]
[1768756961620,3.50533627,142.07,142.04,8.36580558]
[1768756962225,3.50533627,142.07,142.04,1.32574027]
[1768756967730,1.37251815,142.07,142.04,1.32574027]
[1768756967933,3.50533627,142.07,142.04,1.32574027]
[1768756968830,3.50533627,142.07,142.04,8.36599295]
[1768756979741,1.37251815,142.07,142.04,8.36599295]
[1768757004076,1.42677283,142.06,142.04,1.32574027]
[1768757004276,3.55895765,142.07,142.04,8.3660071]
[1768757007075,3.55895765,142.07,142.04,1.32574027]
[1768757008497,3.55895765,142.07,142.04,8.36597144]
[1768757015618,3.55895765,142.07,142.05,1.46616031]
[1768757015619,2.13218482,142.07,142.05,1.46616031]
[1768757018209,10.59730602,142.08,142.05,1.46616031]
[1768757019211,3.55895765,142.08,142.05,1.46616031]
[1768757019406,2.13218482,142.08,142.05,1.46616031]
[1768757019966,3.48854094,142.06,142.03,8.48681398]
[1768757020211,1.35635612,142.06,142.03,8.48681398]
[1768757020407,3.48854094,142.05,142.02,53.54621015]
[1768757020604,1.35635612,142.04,142.02,53.54621015]
[1768757020801,3.48854094,142.05,142.02,1.44621015]
[1768757021009,2.13218482,142.05,142.02,1.44621015]
[1768757021311,2.13218482,142.04,142.02,1.44621015]
[1768757021701,3.48854094,142.03,142.0,1.44621015]
[1768757022009,2.13218482,142.02,142.0,1.44621015]
[1768757022214,2.13218482,142.01,141.99,1.44621015]
[1768757022716,3.48854094,142.02,141.99,1.44621015]
[1768757024002,1.35635612,142.01,141.98,23.90925222]
[1768757024619,1.35635612,142.02,141.99,1.44621015]
[1768757027926,9.1731245,142.03,141.99,1.44621015]
[1768757028230,1.35635612,142.04,142.01,2.13218482]
[1768757028423,1.35635612,142.04,142.01,3.57839497]
[1768757029927,8.39623027,142.05,142.02,1.44621015]
[1768757032132,8.39513981,142.07,142.04,1.44621015]
[1768757032339,8.39513981,142.07,142.04,1.41621015]
[1768757034833,7.03878369,142.07,142.04,1.41621015]
[1768757035037,7.03878369,142.07,142.05,1.49407741]
[1768757036434,7.03828828,142.08,142.05,1.49407741]
[1768757037344,8.53232619,142.08,142.05,1.49407741]
[1768757038241,10.66451101,142.08,142.05,1.49407741]
[1768757038539,8.53232619,142.08,142.05,1.49407741]
[1768757039048,7.03779294,142.09,142.05,1.49407741]
[1768757039213,1.49403791,142.08,142.05,1.49407741]
[1768757039419,1.49403791,142.07,142.04,69.01407741]
[1768757039626,3.62622273,142.08,142.05,1.49407741]
[1768757040409,2.13218482,142.07,142.04,67.52]
[1768757040624,1.49403791,142.06,142.03,1.49407741]
[1768757040914,3.62622273,142.06,142.03,16.91407741]
[1768757041536,10.66551008,142.06,142.04,1.49407741]
[1768757042238,8.53332526,142.06,142.04,1.49407741]
[1768757042419,10.66551008,142.06,142.04,1.49407741]
[1768757043147,8.53332526,142.06,142.04,1.49407741]
[1768757043330,10.66551008,142.06,142.04,1.49407741]
[1768757044943,10.66588164,142.06,142.04,1.49407741]
[1768757046953,1.49403791,142.08,142.04,1.49407741]
[1768757047137,1.49403791,142.08,142.05,1.49407741]
[1768757047853,3.62659429,142.08,142.05,1.49407741]
[1768757048153,10.66500564,142.08,142.05,1.49407741]
[1768757050326,8.53244926,142.08,142.05,1.49407741]
[1768757050956,10.66500564,142.08,142.05,1.49407741]
[1768757052661,10.66541912,142.07,142.04,1.49407741]
[1768757052946,2.13255638,142.06,142.04,1.49407741]
[1768757053149,3.62659429,142.06,142.04,1.49407741]
[1768757054754,2.13255638,142.06,142.04,1.49407741]
[1768757056438,10.66541912,142.07,142.04,1.49407741]
[1768757058265,3.62659429,142.06,142.03,16.91407741]
[1768757058557,10.66541912,142.07,142.04,1.49407741]
[1768757060651,8.53286274,142.07,142.04,1.49407741]
[1768757060837,10.66497382,142.08,142.04,1.49407741]
[1768757065156,1.37421122,142.07,142.04,1.49407741]
[1768757071559,8.41300593,142.07,142.04,1.49407741]
[1768757073652,10.54556231,142.07,142.04,1.49407741]
[1768757076658,8.41300593,142.07,142.04,1.49407741]
[1768757083864,1.37421122,142.07,142.04,1.49407741]
[1768757084862,8.54151097,142.08,142.04,1.49407741]
[1768757085172,10.67406735,142.08,142.04,1.49407741]
[1768757087768,9.17096256,142.08,142.04,1.49407741]
[1768757087973,1.50310479,142.07,142.04,1.49407741]
[1768757100955,10.61094072,142.08,142.05,1.4460196]
[1768757101157,8.57772856,142.1,142.06,1.4460196]
[1768757101466,8.57772856,142.1,142.07,1.4460196]
[1768757102274,10.71028494,142.1,142.07,1.4460196]
[1768757102779,1.53997816,142.1,142.07,1.4460196]
[1768757104775,0.1,142.1,142.07,1.4460196]
[1768757106284,1.53997816,142.1,142.07,1.4460196]
[1768757109399,0.1,142.1,142.08,1.4460196]
[1768757114285,0.1,142.1,142.09,1.4460196]
[1768757120795,0.04,142.1,142.09,1.4460196]
[1768757121805,0.1,142.12,142.1,1.4460196]
[1768757139799,0.1,142.12,142.1,1.42767499]
[1768757147022,1.42061978,142.11,142.08,53.52767499]
[1768757147207,3.55180162,142.11,142.08,53.52767499]
[1768757149456,1.42061978,142.11,142.08,53.52767499]
[1768757151052,3.49180163,142.11,142.08,53.52767499]
[1768757151265,2.13118184,142.1,142.08,52.1]
[1768757151656,9.16812965,142.11,142.08,52.1]
[1768757152842,9.16812965,142.11,142.07,8.46641383]
[1768757153046,1.43754826,142.1,142.07,8.46641383]
[1768757153759,1.43754826,142.1,142.08,1.41483009]
[1768757153938,7.03694781,142.11,142.08,1.41483009]
[1768757154256,6.97694782,142.11,142.08,1.41483009]
[1768757154454,10.70515274,142.12,142.09,1.41483009]
[1768757155371,1.43754826,142.11,142.08,1.41483009]
[1768757156583,9.26752129,142.12,142.08,1.41483009]
[1768757156773,10.70506955,142.12,142.08,1.41483009]
[1768757157580,8.57388771,142.12,142.08,1.41483009]
[1768757157781,10.70506955,142.12,142.08,1.41483009]
[1768757161679,8.57388771,142.12,142.08,1.41483009]
[1768757161863,10.70506955,142.12,142.08,1.41483009]
[1768757162175,8.57388771,142.12,142.08,1.41483009]
[1768757162365,10.70506955,142.12,142.08,1.41483009]
[1768757164466,3.5687301,142.11,142.08,1.41483009]
[1768757166979,2.13118184,142.11,142.08,1.41483009]
[1768757168979,10.70495069,142.12,142.08,1.41483009]
[1768757184601,2.13106298,142.11,142.08,1.41483009]
[1768757186111,3.62257325,142.11,142.08,1.41483009]
[1768757193616,1.49151027,142.11,142.08,1.41483009]
[1768757196915,3.62257325,142.11,142.08,1.41483009]
[1768757202407,1.50212739,142.1,142.07,52.1]
[1768757202610,2.13106298,142.09,142.07,52.1]
[1768757202822,2.13106298,142.08,142.04,1.48032344]
[1768757203025,2.13106298,142.07,142.04,1.48032344]
[1768757204628,2.13106298,142.07,142.03,23.94089116]
[1768757205125,2.13106298,142.07,142.04,1.48032344]
[1768757208628,2.13106298,142.06,142.03,23.94089116]
[1768757210429,2.15511932,142.07,142.03,23.94089116]
[1768757217543,2.15511932,142.07,142.04,1.49055394]
[1768757217920,0.02405634,142.07,142.04,1.49055394]
[1768757218220,2.15511932,142.07,142.04,1.49055394]
[1768757218420,0.02405634,142.07,142.04,1.49055394]
[1768757227547,0.02405634,142.07,142.04,8.53077192]
[1768757227953,9.28397212,142.08,142.05,1.49055394]
[1768757230956,9.28496978,142.08,142.05,1.49055394]
[1768757234245,9.28496978,142.08,142.04,1.49055394]
[1768757250791,7.03834555,142.08,142.05,1.53590296]
[1768757253573,7.03779294,142.09,142.05,1.53590296]
[1768757254470,9.16985358,142.09,142.05,1.53590296]
[1768757255392,7.03779294,142.09,142.05,1.53590296]
[1768757255579,9.16985358,142.09,142.05,1.53590296]
[1768757256293,7.03779294,142.09,142.05,1.53590296]
[1768757256471,9.16985358,142.09,142.05,1.53590296]
[1768757256671,9.39523026,142.09,142.05,1.53590296]
[1768757263995,9.16985358,142.09,142.05,1.53590296]
[1768757264700,9.4179181,142.09,142.05,1.53590296]
[1768757269599,2.13206064,142.08,142.05,1.53590296]
[1768757274202,9.4179181,142.09,142.05,1.53590296]
[1768757277207,7.28585746,142.09,142.05,1.53590296]
[1768757277395,9.4179181,142.09,142.05,1.53590296]
[1768757277701,7.28585746,142.09,142.05,1.53590296]
[1768757277910,9.4179181,142.09,142.05,1.53590296]
[1768757280587,2.47780544,142.12,142.07,1.57331453]
[1768757280787,2.13206064,142.11,142.07,1.57331453]
[1768757280987,2.47780544,142.12,142.07,2.13206064]
[1768757281204,2.47780544,142.12,142.08,1.57331453]
[1768757281486,7.03701422,142.11,142.08,1.57331453]
[1768757281692,0.3457448,142.12,142.09,1.57331453]
[1768757281901,0.1,142.12,142.09,1.57331453]
[1768757283390,9.26851053,142.12,142.09,1.57331453]
[1768757286112,9.51282945,142.12,142.09,1.57331453]
[1768757290998,9.51161567,142.12,142.09,1.57331453]
[1768757293420,7.13644989,142.12,142.09,1.57331453]
[1768757293620,9.26729675,142.12,142.09,1.57331453]
[1768757295219,7.13644989,142.12,142.09,1.57331453]
[1768757295520,9.26729675,142.12,142.09,1.57331453]
[1768757306529,7.13644989,142.12,142.09,1.57331453]
[1768757306827,9.26729675,142.12,142.09,1.57331453]
[1768757307031,7.13644989,142.12,142.09,1.57331453]
[1768757307329,9.26729675,142.12,142.09,1.57331453]
[1768757309433,7.13644989,142.12,142.09,1.57331453]
[1768757309634,9.26729675,142.12,142.09,1.57331453]
[1768757318628,7.13644989,142.12,142.09,1.57331453]
[1768757318816,9.26729675,142.12,142.09,1.57331453]
[1768757323922,9.5027176,142.12,142.09,1.57331453]
[1768757330362,2.46626771,142.12,142.09,1.57331453]
[1768757332556,2.46626771,142.12,142.09,8.61107251]
[1768757337464,2.23084686,142.12,142.1,1.5104588]
[1768757341753,0.1,142.12,142.1,1.5104588]
[1768757341971,2.23084686,142.12,142.1,1.5104588]
[1768757344965,0.1,142.12,142.1,1.5104588]
[1768757345145,2.23084686,142.12,142.1,1.5104588]
[1768757345352,0.1,142.12,142.1,1.5104588]
[1768757345751,2.23084686,142.12,142.1,1.5104588]
[1768757350874,2.23084381,142.12,142.1,1.5104588]
[1768757360087,2.13084381,142.11,142.1,1.5104588]
[1768757363094,0.1,142.12,142.1,1.5104588]
[1768757363389,2.13084381,142.11,142.1,1.5104588]
[1768757363691,2.23084381,142.12,142.1,1.5104588]
[1768757365227,2.43713584,142.12,142.09,7.03776843]
[1768757365493,2.13084381,142.11,142.09,7.03776843]
[1768757366787,2.13084381,142.11,142.09,8.54233716]
[1768757371799,0.30629203,142.12,142.09,8.54233716]
[1768757371976,2.13084381,142.11,142.09,8.54233716]
[1768757373810,2.13084381,142.11,142.09,1.50456873]
[1768757380103,2.43713584,142.12,142.09,1.50456873]
[1768757384088,2.32768435,142.11,142.08,1.57285412]
[1768757385006,2.32768435,142.09,142.06,1.57285412]
[1768757385214,2.13084381,142.08,142.06,1.57285412]
[1768757385995,2.13084381,142.08,142.06,8.61201728]
[1768757386191,0.19642106,142.1,142.07,1.57285412]
[1768757386406,2.13084381,142.09,142.07,1.57285412]
[1768757396817,2.32726487,142.1,142.07,1.57285412]
[1768757407519,2.21322976,142.09,142.06,1.5657356]
[1768757408102,9.25083867,142.1,142.07,1.5657356]
[1768757408317,2.13084381,142.09,142.07,1.5657356]
[1768757409323,9.25083867,142.1,142.07,1.5657356]
[1768757411202,7.11999486,142.1,142.07,1.5657356]
[1768757411505,9.25083867,142.1,142.07,1.5657356]
[1768757412935,9.2515392,142.1,142.07,1.5657356]
[1768757418507,7.11999486,142.1,142.07,1.5657356]
[1768757421336,9.2515392,142.1,142.07,1.5657356]
[1768757428238,0.08238595,142.1,142.07,1.5657356]
[1768757428437,2.21393029,142.1,142.07,1.5657356]
[1768757433346,0.08238595,142.1,142.07,1.5657356]
[1768757433526,2.21393029,142.1,142.07,1.5657356]
[1768757435729,2.1539303,142.1,142.07,1.5657356]
[1768757440442,7.03700318,142.11,142.06,1.43178336]
[1768757440745,2.13154434,142.09,142.06,1.43178336]
[1768757442240,28.16671755,142.1,142.06,1.43178336]
[1768757442434,2.13154434,142.09,142.06,1.43178336]
[1768757444145,28.16671755,142.1,142.06,1.43178336]
[1768757444327,2.13154434,142.09,142.06,1.43178336]
[1768757444723,9.16941255,142.09,142.06,1.43178336]
[1768757446735,7.03786821,142.09,142.06,1.43178336]
[1768757446930,9.16941255,142.09,142.06,1.43178336]
[1768757456536,2.13154434,142.08,142.05,1.39346821]
[1768757456742,2.07154435,142.08,142.05,1.39346821]
[1768757461070,2.01154436,142.08,142.05,1.39346821]
[1768757466171,2.13154434,142.08,142.05,1.39346821]
[1768757469675,30.29840504,142.09,142.05,1.39346821]
[1768757474982,30.29871101,142.09,142.05,1.39346821]
[1768757478592,28.1668607,142.09,142.05,1.39346821]
[1768757478765,30.29871101,142.09,142.05,1.39346821]
[1768757487797,28.1668607,142.09,142.05,1.39346821]
[1768757487978,30.29871101,142.09,142.05,1.39346821]
[1768757490799,28.1668607,142.09,142.06,1.32059665]
[1768757491001,30.29871101,142.09,142.06,1.32059665]
[1768757491172,9.16971852,142.09,142.06,1.32059665]
[1768757494204,7.03786821,142.09,142.06,1.32059665]
[1768757494379,9.16971852,142.09,142.06,1.32059665]
[1768757494574,7.03786821,142.09,142.06,1.32059665]
[1768757494773,9.16971852,142.09,142.06,1.32059665]
[1768757497300,7.03786821,142.09,142.06,1.32059665]
[1768757497500,9.16971852,142.09,142.06,1.32059665]
[1768757499292,2.13185031,142.09,142.06,1.32059665]
[1768757499495,15.42,142.1,142.08,1.29631891]
[1768757499681,13.98081333,142.1,142.07,17.55185031]
[1768757499881,13.98081333,142.1,142.08,1.29631891]
[1768757500185,1.31297003,142.12,142.08,1.29631891]
[1768757501005,1.31297003,142.12,142.08,7.03814138]
[1768757501298,1.31297003,142.12,142.09,1.29631891]
[1768757502207,3.44482034,142.12,142.09,1.29631891]
[1768757511508,1.31297003,142.12,142.09,1.29631891]
[1768757511696,3.44482034,142.12,142.09,1.29631891]
[1768757513811,2.23185031,142.12,142.09,1.29631891]
[1768757514110,3.58823778,142.12,142.09,1.29631891]
[1768757514312,0.1,142.12,142.09,1.29631891]
[1768757514498,2.23185031,142.12,142.09,1.29631891]
[1768757514809,0.1,142.12,142.09,1.29631891]
[1768757515004,2.23185031,142.12,142.09,1.29631891]
[1768757520302,3.58823778,142.12,142.09,1.29631891]
[1768757520505,1.45638747,142.12,142.09,1.29631891]
[1768757520700,2.23185031,142.12,142.1,1.36741852]
[1768757521630,0.1,142.12,142.11,1.36741852]
[1768757525901,0.1,142.12,142.1,23.82471571]
[1768757532533,0.1,142.12,142.1,16.78741852]
[1768757534637,0.1,142.12,142.1,23.82444345]
[1768757534934,0.1,142.13,142.11,1.36741852]
[1768757543649,1.54876142,142.13,142.1,23.80615741]
[1768757548246,1.54876142,142.13,142.1,22.45702493]
[1768757548442,1.54876142,142.13,142.1,23.80615741]
[1768757549250,1.54876142,142.13,142.11,1.34913248]
[1768757551944,0.1,142.13,142.11,1.34913248]
[1768757553048,1.54876142,142.13,142.11,1.34913248]
[1768757557749,2.13030176,142.12,142.07,1.38773093]
[1768757557948,2.13030176,142.1,142.07,1.38773093]
[1768757559050,2.13030176,142.09,142.07,1.38773093]
[1768757559251,2.01030178,142.09,142.07,1.38773093]
[1768757560235,2.13030176,142.08,142.07,1.38773093]
[1768757560436,2.07030177,142.08,142.07,1.38773093]
[1768757560742,0.02289329,142.1,142.05,7.03977472]
[1768757561054,2.13030176,142.08,142.05,7.03977472]
[1768757561431,2.13030176,142.07,142.05,7.03977472]
[1768757561850,1.41563634,142.09,142.05,7.03977472]
[1768757562053,2.13030176,142.07,142.05,7.03977472]
[1768757562754,2.13030176,142.07,142.06,1.38773093]
[1768757562948,2.13030176,142.07,142.05,7.03977472]
[1768757564844,2.13030176,142.07,142.06,7.03927917]
[1768757565045,2.13030176,142.07,142.06,8.4270101]
[1768757565251,2.13030176,142.08,142.06,8.4270101]
[1768757566056,1.41563634,142.12,142.08,1.38773093]
[1768757566237,2.13030176,142.11,142.08,1.38773093]
[1768757567045,3.5459381,142.11,142.08,1.38773093]
[1768757567458,3.5459381,142.11,142.08,8.42580891]
[1768757570960,1.41563634,142.11,142.08,8.42580891]
[1768757571149,3.5459381,142.11,142.08,8.42580891]
[1768757573563,1.41563634,142.11,142.08,8.42580891]
[1768757573753,3.5459381,142.11,142.08,8.42580891]
[1768757574077,1.48388659,142.11,142.09,1.51562372]
[1768757574448,1.48388659,142.11,142.08,8.5537017]
[1768757579980,3.61418835,142.11,142.08,8.5537017]
[1768757580856,3.61418835,142.09,142.06,19.05480784]
[1768757581056,3.61418835,142.09,142.07,15.42]
[1768757581556,1.48388659,142.1,142.07,16.93562372]
[1768757581759,1.48388659,142.1,142.08,1.51562372]
[1768757581965,3.61418835,142.1,142.07,16.93562372]
[1768757583078,3.61418835,142.1,142.07,23.97410713]
[1768757586876,1.48388659,142.1,142.07,23.97410713]
[1768757587180,2.13030176,142.11,142.08,1.51562372]
[1768757587354,3.61418835,142.11,142.08,1.51562372]
[1768757587883,1.48388659,142.11,142.08,1.51562372]
[1768757590418,1.48388659,142.11,142.08,8.55358764]
[1768757590870,3.61418835,142.11,142.08,8.55358764]
[1768757596886,3.61491478,142.11,142.08,8.55358764]
[1768757599381,1.48388659,142.1,142.07,23.97412572]
[1768757600988,1.48388659,142.1,142.07,22.458502]
[1768757601171,1.48388659,142.1,142.08,1.51562372]
[1768757605291,1.48388659,142.1,142.07,24.02935376]
[1768757608291,1.48388659,142.1,142.08,1.57085176]
[1768757611490,3.61491478,142.1,142.07,24.02935376]
[1768757611680,1.48388659,142.1,142.07,24.02935376]
[1768757620601,1.63099416,142.11,142.08,1.66097058]
[1768757620903,1.63099416,142.12,142.09,1.66097058]
[1768757622909,1.63099416,142.12,142.1,7.03729767]
[1768757630616,1.63099416,142.12,142.1,9.16832586]
[1768757636915,1.89924909,142.14,142.11,3.79729169]
[1768757637121,1.89924909,142.14,142.12,2.10102819]
[1768757637416,1.89924909,142.14,142.12,2.07102819]
[1768757639222,1.89924909,142.14,142.11,8.70266366]
[1768757639423,1.89924909,142.14,142.12,2.13102819]
[1768757644633,1.89924909,142.14,142.11,10.83369185]
[1768757647434,1.89924909,142.14,142.09,28.09378451]
[1768757647735,9.26636029,142.14,142.09,19.21729169]
[1768757647927,7.1353321,142.14,142.09,19.21729169]
[1768757648229,7.1353321,142.14,142.1,1.6662635]
[1768757648617,7.1353321,142.14,142.1,8.70326531]
[1768757649235,0.02368731,142.13,142.1,8.70326531]
[1768757652238,0.02368731,142.13,142.1,10.8342935]
[1768757658942,0.02368731,142.13,142.1,10.83340269]
[1768757659236,7.25914959,142.14,142.11,2.13013738]
[1768757659443,7.25914959,142.14,142.11,3.79640088]
[1768757659644,7.1353321,142.14,142.11,3.79640088]
[1768757660033,7.26963923,142.14,142.11,3.79640088]
[1768757663651,7.26963923,142.14,142.11,1.6662635]
[1768757663853,7.26963923,142.14,142.11,3.79640088]
[1768757664350,7.26963923,142.14,142.11,1.6662635]
[1768757664539,7.26963923,142.14,142.11,3.79640088]
[1768757666452,7.26963923,142.14,142.11,1.6662635]
[1768757666645,7.26963923,142.14,142.11,3.79640088]
[1768757667350,7.26963923,142.14,142.11,1.6662635]
[1768757679561,7.26969279,142.14,142.11,1.6662635]
[1768757680964,7.038,142.33,142.23,3.673]
[1768757681167,1.84374244,142.47,142.32,2.13013738]
[1768757681468,3.66363502,142.41,142.28,2.13013738]
[1768757681639,2.13013738,142.38,142.27,1.85896269]
[1768757681847,2.13013738,142.32,142.25,1.85896269]
[1768757682069,15.42,142.31,142.26,2.13013738]
[1768757682647,10.19934915,142.31,142.27,7.02888873]
[1768757682868,10.19934915,142.31,142.28,2.13013738]
[1768757683250,10.19934915,142.31,142.27,7.02888873]
[1768757683452,1.84374244,142.3,142.27,2.13013738]
[1768757683770,1.84374244,142.3,142.28,2.13013738]
[1768757684171,15.4,142.29,142.26,7.0293698]
[1768757684463,2.13013738,142.35,142.28,2.13013738]
[1768757684768,2.13013738,142.35,142.29,2.13013738]
[1768757685162,22.42543206,142.34,142.29,2.13013738]